bitfinex/quotes_BTCUSD_20250313
["timestamp","ask_amount","ask_price","bid_price","bid_amount"]
[1741885803941,0.247353,80856.0,80851.0,0.012368]
[1741885804145,0.247353,80856.0,80846.0,0.11035728]
[1741885804146,0.247378,80848.0,80846.0,0.11035728]
[1741885804376,0.012369,80847.0,80846.0,0.11035728]
[1741885804564,0.012369,80847.0,80846.0,0.11535728]
[1741885804738,0.012369,80847.0,80846.0,0.11035728]
[1741885805521,0.012369,80847.0,80833.0,0.012371]
[1741885805522,0.259768,80842.0,80837.0,0.01237]
[1741885805984,0.15456,80847.0,80842.0,0.012369]
[1741885806160,0.15456,80847.0,80846.0,0.247383]
[1741885806367,0.15456,80847.0,80846.0,0.001]
[1741885806776,0.40194,80847.0,80846.0,0.001]
[1741885806982,0.414309,80847.0,80846.0,0.001]
[1741885807164,0.83400999,80847.0,80846.0,0.001]
[1741885807779,0.83400999,80847.0,80816.0,0.012373]
[1741885807780,0.25981,80828.0,80816.0,0.012373]
[1741885808200,0.25981,80828.0,80818.0,0.259839]
[1741885808406,0.247439,80828.0,80823.0,0.259823]
[1741885808602,0.25981,80828.0,80823.0,1.5]
[1741885809067,0.247439,80828.0,80823.0,1.747454]
[1741885809505,0.247439,80828.0,80823.0,1.759826]
[1741885809709,0.012371,80831.0,80823.0,1.759826]
[1741885809710,0.012369,80842.0,80831.0,0.012371]
[1741885809913,0.1546,80835.0,80832.0,0.247426]
[1741885810121,0.16697,80835.0,80829.0,0.247434]
[1741885810347,0.012371,80833.0,80827.0,0.0003378]
[1741885810552,0.247428,80832.0,80827.0,0.0003378]
[1741885810667,0.247428,80832.0,80827.0,0.0043378]
[1741885810876,0.247435,80829.0,80827.0,0.0043378]
[1741885811118,0.259806,80829.0,80827.0,0.0003378]
[1741885811416,0.012371,80830.0,80829.0,0.002]
[1741885812049,0.247429,80831.0,80829.0,0.002]
[1741885812480,0.2598,80831.0,80829.0,0.002]
[1741885812977,0.259794,80834.0,80829.0,0.002]
[1741885813149,0.247426,80833.0,80829.0,0.006]
[1741885813394,0.012371,80830.0,80829.0,0.004]
[1741885814361,0.012371,80830.0,80829.0,0.006]
[1741885814586,0.012371,80830.0,80829.0,0.004]
[1741885814998,0.012371,80830.0,80829.0,0.007]
[1741885815239,0.00909245,80830.0,80829.0,0.003]
[1741885815761,0.00909245,80830.0,80829.0,0.006338]
[1741885816198,0.012371,80834.0,80829.0,0.006338]
[1741885816199,0.16766221,80835.0,80829.0,0.003338]
[1741885816409,0.16766221,80835.0,80830.0,0.012371]
[1741885816606,0.41508121,80835.0,80830.0,0.012371]
[1741885816830,0.16766221,80835.0,80831.0,0.247427]
[1741885817403,0.247439,80828.0,80827.0,0.0003378]
[1741885817644,0.012371,80831.0,80827.0,0.0003378]
[1741885818063,0.012371,80828.0,80827.0,0.0003378]
[1741885819096,0.21081864,80828.0,80827.0,0.0003378]
[1741885820015,0.51081864,80828.0,80827.0,0.0003378]
[1741885820168,0.50927199,80828.0,80827.0,0.0003378]
[1741885820369,0.53560152,80828.0,80827.0,0.0003378]
[1741885820994,0.54498555,80828.0,80827.0,0.0003378]
[1741885821563,0.54798555,80828.0,80827.0,0.0003378]
[1741885821767,0.54598555,80828.0,80827.0,0.0003378]
[1741885821966,0.54798555,80828.0,80827.0,0.0003378]
[1741885822175,0.28292456,80828.0,80827.0,0.0003378]
[1741885822525,0.04170053,80828.0,80827.0,0.0003378]
[1741885822979,0.02932953,80828.0,80827.0,0.0003378]
[1741885823178,0.005,80828.0,80827.0,0.0003378]
[1741885823338,0.014371,80828.0,80827.0,0.0003378]
[1741885823510,0.012371,80828.0,80827.0,0.0003378]
[1741885823910,0.0489,80855.0,80830.0,0.2598]
[1741885824138,0.402045,80840.0,80834.0,0.247419]
[1741885824345,0.25978,80838.0,80832.0,0.259794]
[1741885824545,0.012369,80846.0,80839.0,0.247404]
[1741885824703,0.012369,80846.0,80838.0,0.01237]
[1741885824704,0.01271156,80848.0,80843.0,0.247392]
[1741885824901,0.012368,80851.0,80843.0,0.247392]
[1741885824902,0.15464,80851.0,80844.0,0.012369]
[1741885825167,0.247383,80846.0,80835.0,0.01237]
[1741885825320,0.259766,80842.0,80836.0,0.01237]
[1741885825525,0.003,80838.0,80836.0,0.01237]
[1741885825719,0.003,80838.0,80837.0,0.01237]
[1741885826140,0.0001691,80990.0,80847.0,0.259746]
[1741885826141,0.247365,80853.0,80847.0,0.259746]
[1741885826340,0.001,80851.0,80847.0,0.259746]
[1741885826809,0.247371,80850.0,80844.0,0.259758]
[1741885827008,0.247374,80849.0,80842.0,0.259762]
[1741885827235,0.247387,80845.0,80841.0,0.012369]
[1741885827626,0.247396,80842.0,80834.0,0.259788]
[1741885827761,0.247407,80839.0,80833.0,0.247423]
[1741885828016,0.247427,80832.0,80828.0,0.0003382]
[1741885828311,0.247433,80830.0,80828.0,0.0003382]
[1741885828544,0.247432,80830.0,80828.0,0.0003382]
[1741885828692,0.012371,80829.0,80828.0,0.0003382]
[1741885829298,0.37103,80856.0,80828.0,0.0003382]
[1741885829499,0.012371,80833.0,80828.0,0.0003382]
[1741885829905,0.259806,80829.0,80828.0,0.0043382]
[1741885830282,0.247434,80830.0,80828.0,0.0043382]
[1741885830485,0.012371,80829.0,80828.0,0.0063382]
[1741885830685,0.27240452,80840.0,80834.0,0.24742]
[1741885830891,0.2475781,80838.0,80832.0,0.012371]
[1741885831233,0.247415,80836.0,80831.0,0.012371]
[1741885831434,0.012371,80829.0,80828.0,0.0043382]
[1741885831971,0.01986802,80829.0,80828.0,0.0023382]
[1741885832352,0.00749702,80829.0,80828.0,0.0023382]
[1741885832726,0.01986802,80829.0,80828.0,0.0023382]
[1741885832969,0.01986802,80829.0,80828.0,0.0033382]
[1741885833386,0.00749702,80829.0,80828.0,0.0033382]
[1741885833643,0.247426,80833.0,80828.0,0.0033382]
[1741885833992,0.247434,80830.0,80828.0,0.0053382]
[1741885834222,0.012371,80831.0,80828.0,0.0053382]
[1741885834523,0.012371,80829.0,80828.0,0.0053382]
[1741885834740,0.012371,80829.0,80828.0,0.0033382]
[1741885834869,0.259797,80833.0,80828.0,0.0033382]
[1741885835055,0.00747994,80829.0,80828.0,0.0003382]
[1741885835254,0.247429,80832.0,80828.0,0.0003382]
[1741885835457,0.25491494,80829.0,80828.0,0.0023382]
[1741885835665,0.259806,80829.0,80828.0,0.0023382]
[1741885835909,0.26728594,80829.0,80828.0,0.0023382]
[1741885836107,0.26728594,80829.0,80828.0,0.0013382]
[1741885836289,0.26728594,80829.0,80828.0,0.0033382]
[1741885836701,0.26728594,80829.0,80828.0,0.0053382]
[1741885836905,0.25491494,80829.0,80828.0,0.0053382]
[1741885837099,0.00747994,80829.0,80828.0,0.0053382]
[1741885837304,0.25491494,80829.0,80828.0,0.0053382]
[1741885837525,0.259797,80833.0,80828.0,0.0053382]
[1741885837774,0.00747994,80829.0,80828.0,0.2651452]
[1741885837902,0.1546,80841.0,80836.0,0.259782]
[1741885838148,0.247404,80840.0,80834.0,0.247418]
[1741885838370,0.00747994,80837.0,80834.0,1.5]
[1741885838952,0.247414,80836.0,80834.0,1.5]
[1741885839712,0.2475801,80838.0,80834.0,1.5]
[1741885840104,0.247411,80837.0,80834.0,1.501]
[1741885840503,0.00747994,80836.0,80834.0,1.501]
[1741885840904,0.247417,80835.0,80834.0,1.5]
[1741885841299,0.00749994,80835.0,80834.0,1.5]
[1741885841503,0.00749994,80835.0,80834.0,1.512371]
[1741885841755,0.0001691,80838.0,80834.0,1.513371]
[1741885842075,0.0001691,80838.0,80834.0,0.260789]
[1741885842288,0.01237,80836.0,80830.0,0.012371]
[1741885842473,0.01237,80836.0,80833.0,1.5]
[1741885842638,0.01237,80836.0,80834.0,0.001]
[1741885842841,0.26883572,80835.0,80834.0,0.001]
[1741885843059,0.26728935,80835.0,80834.0,0.002]
[1741885843318,0.26728935,80835.0,80834.0,0.001]
[1741885844243,0.26728935,80835.0,80834.0,0.002]
[1741885844446,0.26728935,80835.0,80834.0,0.001]
[1741885844850,0.76299034,80835.0,80834.0,0.001]
[1741885845379,0.559806,80829.0,80828.0,0.0003382]
[1741885845533,0.67950699,80829.0,80828.0,0.0003382]
[1741885845934,0.67950699,80829.0,80811.0,0.01158545]
[1741885845935,0.259861,80812.0,80811.0,0.01158545]
[1741885846137,0.259906,80798.0,80796.0,0.0003378]
[1741885846538,0.26736332,80798.0,80796.0,0.0003378]
[1741885846744,0.56736332,80798.0,80796.0,0.0003378]
[1741885846951,0.68706431,80798.0,80796.0,0.0003378]
[1741885847157,0.259926,80792.0,80791.0,0.0003069]
[1741885847310,0.38708373,80792.0,80791.0,0.0003069]
[1741885847831,0.39960666,80792.0,80791.0,0.0003069]
[1741885848188,0.69960666,80792.0,80791.0,0.0003069]
[1741885848938,0.70060666,80792.0,80791.0,0.0003069]
[1741885849581,0.69960666,80792.0,80791.0,0.0003069]
[1741885849798,0.78380666,80792.0,80791.0,0.0003069]
[1741885850204,0.78380666,80792.0,80791.0,9e-07]
[1741885850413,0.78480666,80792.0,80791.0,9e-07]
[1741885852530,0.78380666,80792.0,80791.0,9e-07]
[1741885852733,0.78280666,80792.0,80791.0,9e-07]
[1741885852897,0.78380666,80792.0,80791.0,9e-07]
[1741885853101,0.78280666,80792.0,80791.0,9e-07]
[1741885853300,0.78380666,80792.0,80791.0,9e-07]
[1741885853561,0.78480666,80792.0,80791.0,9e-07]
[1741885853773,0.78280666,80792.0,80791.0,9e-07]
[1741885853928,0.93744666,80792.0,80791.0,9e-07]
[1741885854128,0.94144666,80792.0,80791.0,9e-07]
[1741885854349,0.94144666,80792.0,80791.0,0.00017]
[1741885855134,0.94644666,80792.0,80791.0,0.00017]
[1741885855623,0.93744666,80792.0,80791.0,0.00017]
[1741885855794,0.93944666,80792.0,80791.0,0.00017]
[1741885855997,0.94144666,80792.0,80791.0,1e-06]
[1741885858461,0.96083871,80792.0,80791.0,1e-06]
[1741885859817,0.96359794,80792.0,80791.0,1e-06]
[1741885860219,0.559961,80781.0,80780.0,0.0003378]
[1741885860420,0.67966199,80781.0,80780.0,0.0003378]
[1741885860829,0.68987797,80781.0,80780.0,0.0003378]
[1741885861031,0.58487234,80766.0,80765.0,0.0003378]
[1741885861230,0.85921333,80766.0,80765.0,0.0003378]
[1741885861430,0.86940368,80766.0,80765.0,0.0003378]
[1741885862341,0.88880076,80766.0,80765.0,0.0003378]
[1741885862545,0.260054,80752.0,80748.0,0.000338]
[1741885862739,0.23304256,80752.0,80748.0,0.000338]
[1741885862943,0.67528156,80752.0,80748.0,0.000338]
[1741885863776,0.260065,80749.0,80748.0,0.000138]
[1741885863973,0.53440599,80749.0,80748.0,0.000138]
[1741885864211,0.54449876,80749.0,80748.0,0.000138]
[1741885864567,0.02301,80749.0,80748.0,0.000138]
[1741885864806,0.02301,80749.0,80748.0,0.012522]
[1741885865003,0.15464,80752.0,80751.0,0.260057]
[1741885865271,0.260032,80760.0,80751.0,0.260057]
[1741885865473,0.15464,80758.0,80756.0,0.247656]
[1741885865781,0.012381,80765.0,80748.0,0.000138]
[1741885865782,0.01238,80770.0,80762.0,0.247641]
[1741885865963,0.260014,80765.0,80758.0,0.012382]
[1741885866178,0.15464,80771.0,80765.0,0.012381]
[1741885866378,0.00937863,80772.0,80770.0,0.247613]
[1741885866576,0.247626,80767.0,80761.0,0.012382]
[1741885866779,0.247628,80766.0,80760.0,0.247644]
[1741885867012,0.0003384,80766.0,80764.0,0.260013]
[1741885867127,0.0003384,80766.0,80765.0,0.13208199]
[1741885868158,4e-07,80766.0,80765.0,0.48098199]
[1741885868379,4e-07,80766.0,80765.0,0.91272284]
[1741885868561,4e-07,80766.0,80765.0,2.41272284]
[1741885868753,0.15464,80797.0,80765.0,2.41272284]
[1741885868754,0.01939081,80796.0,80795.0,0.259917]
[1741885868979,0.01939081,80796.0,80793.0,0.247543]
[1741885869162,0.01939081,80796.0,80794.0,0.259917]
[1741885869358,0.01939081,80796.0,80795.0,0.259917]
[1741885869960,0.0003382,80798.0,80797.0,0.258909]
[1741885870185,0.0003382,80798.0,80797.0,0.37860999]
[1741885870377,0.0003382,80798.0,80797.0,1.87860999]
[1741885871075,0.019722,80798.0,80797.0,1.87860999]
[1741885871359,0.019722,80798.0,80797.0,1.87760999]
[1741885871563,0.019722,80798.0,80797.0,1.5]
[1741885871763,0.279628,80798.0,80797.0,1.5]
[1741885871967,0.247541,80795.0,80791.0,0.4172]
[1741885872180,0.27963,80798.0,80791.0,0.429577]
[1741885872393,0.0003382,80798.0,80797.0,0.02991685]
[1741885872588,0.0003382,80798.0,80797.0,0.45048713]
[1741885872785,2e-07,80798.0,80797.0,0.52211784]
[1741885873151,2e-07,80798.0,80797.0,0.52811784]
[1741885874533,2e-07,80798.0,80797.0,0.52211784]
[1741885874733,2e-07,80798.0,80797.0,0.52611784]
[1741885874972,2e-07,80798.0,80797.0,0.53211784]
[1741885875119,2e-07,80798.0,80797.0,0.52811784]
[1741885875491,2e-07,80798.0,80797.0,0.53411784]
[1741885877835,2e-07,80798.0,80797.0,0.39160999]
[1741885878038,2e-07,80798.0,80797.0,0.40615084]
[1741885878452,2e-07,80798.0,80797.0,1.90615084]
[1741885878669,2e-07,80798.0,80797.0,2.61735084]
[1741885878876,2e-07,80798.0,80797.0,2.61635084]
[1741885879080,2e-07,80798.0,80797.0,2.62135084]
[1741885879299,2e-07,80798.0,80797.0,0.4272]
[1741885879500,2e-07,80798.0,80797.0,0.677109]
[1741885879676,0.01571962,80798.0,80797.0,0.677109]
[1741885880136,2e-07,80798.0,80797.0,0.677109]
[1741885880567,0.01938364,80798.0,80797.0,0.79680999]
[1741885880741,0.01938364,80798.0,80797.0,0.81135084]
[1741885880878,0.01938364,80798.0,80797.0,0.82335084]
[1741885881086,0.01938364,80798.0,80797.0,0.81735084]
[1741885881315,2e-07,80798.0,80797.0,0.81135084]
[1741885881515,0.01938445,80798.0,80797.0,0.4222]
[1741885881865,0.03510387,80798.0,80797.0,0.005]
[1741885882213,0.04747987,80798.0,80797.0,0.005]
[1741885882415,0.29501287,80798.0,80797.0,0.006]
[1741885882680,0.03510387,80798.0,80797.0,0.018376]
[1741885882803,0.01938445,80798.0,80797.0,0.14307699]
[1741885883001,2e-07,80798.0,80797.0,0.14307699]
[1741885883830,2e-07,80798.0,80797.0,0.13707699]
[1741885884028,2e-07,80798.0,80797.0,0.13294662]
[1741885884254,2e-07,80798.0,80797.0,0.13394662]
[1741885884461,2e-07,80798.0,80797.0,0.13307699]
[1741885884634,2e-07,80798.0,80797.0,0.13207699]
[1741885885032,2e-07,80798.0,80797.0,0.13807699]
[1741885885570,2e-07,80798.0,80797.0,0.11970099]
[1741885885787,2e-07,80798.0,80797.0,0.12470099]
[1741885885979,2e-07,80798.0,80797.0,0.13070099]
[1741885886278,2e-07,80798.0,80797.0,0.011]
[1741885886480,0.01567725,80798.0,80797.0,0.023376]
[1741885886689,2e-07,80798.0,80797.0,0.023376]
[1741885887118,2e-07,80798.0,80797.0,0.14394668]
[1741885887328,2e-07,80798.0,80797.0,0.13207699]
[1741885887752,2e-07,80798.0,80797.0,0.13907699]
[1741885888050,2e-07,80798.0,80797.0,0.12370099]
[1741885888251,2e-07,80798.0,80797.0,0.11970099]
[1741885888437,0.0123762,80798.0,80797.0,0.01]
[1741885888570,0.44930162,80798.0,80797.0,0.01]
[1741885888776,0.44775424,80798.0,80797.0,0.01]
[1741885889017,0.44775424,80798.0,80797.0,1e-06]
[1741885889169,0.259987,80773.0,80772.0,0.4172]
[1741885889389,0.247619,80770.0,80764.0,0.012381]
[1741885889626,0.24763,80766.0,80765.0,0.11970099]
[1741885890030,0.247638,80763.0,80762.0,1.5]
[1741885890449,0.247632,80765.0,80762.0,1.5]
[1741885891181,0.26314177,80764.0,80762.0,1.503]
[1741885891432,0.26314177,80764.0,80762.0,1.5]
[1741885891798,0.012381,80763.0,80762.0,1.503]
[1741885892002,0.012381,80763.0,80752.0,0.0001692]
[1741885892003,0.012383,80753.0,80752.0,0.0001692]
[1741885892396,0.27549576,80753.0,80752.0,0.0001692]
[1741885893010,0.294893,80753.0,80752.0,0.0001692]
[1741885893591,0.27549576,80753.0,80752.0,0.0001692]
[1741885894938,0.27749576,80753.0,80752.0,0.0001692]
[1741885895155,0.39719675,80753.0,80752.0,0.0001692]
[1741885895366,0.27849576,80753.0,80752.0,0.0001692]
[1741885895721,0.27749576,80753.0,80752.0,0.0001692]
[1741885896201,0.29689404,80753.0,80752.0,0.0001692]
[1741885896605,0.71659503,80753.0,80752.0,0.0001692]
[1741885897219,0.79659503,80753.0,80752.0,0.0001692]
[1741885897425,0.79759503,80753.0,80752.0,0.0001692]
[1741885897607,0.79859503,80753.0,80752.0,0.0001692]
[1741885897969,0.79659503,80753.0,80752.0,0.0001692]
[1741885898287,0.79659503,80753.0,80752.0,2e-07]
[1741885898288,0.84659503,80753.0,80752.0,2e-07]
[1741885898513,0.547687,80747.0,80746.0,0.0001688]
[1741885898702,0.67977199,80747.0,80746.0,0.0001688]
[1741885898831,0.69476171,80747.0,80746.0,0.0001688]
[1741885900509,0.74342327,80747.0,80746.0,8e-07]
[1741885900639,0.74642327,80747.0,80746.0,8e-07]
[1741885901042,0.74242327,80747.0,80746.0,8e-07]
[1741885901269,0.74242327,80747.0,80716.0,0.0001691]
[1741885901270,0.012388,80717.0,80716.0,0.0001691]
[1741885901561,0.247907,80676.0,80665.0,0.11035728]
[1741885901797,0.0215,80650.0,80625.0,0.01940268]
[1741885901997,0.28005985,80608.0,80607.0,1e-07]
[1741885902202,0.260519,80608.0,80607.0,1e-07]
[1741885902400,0.01489508,80608.0,80607.0,1e-07]
[1741885902602,0.01489508,80608.0,80607.0,0.0124051]
[1741885902832,0.00155099,80629.0,80607.0,0.0124051]
[1741885902833,0.4223861,80631.0,80607.0,1e-07]
[1741885903038,0.11970099,80630.0,80628.0,0.012402]
[1741885903251,0.11970099,80630.0,80629.0,1.046731]
[1741885903464,0.0124,80645.0,80629.0,1.046731]
[1741885903465,0.0128861,80644.0,80643.0,0.260406]
[1741885903647,0.0126806,80657.0,80649.0,0.247988]
[1741885903894,0.0126806,80657.0,80640.0,0.0124]
[1741885903895,0.02485342,80666.0,80663.0,0.247942]
[1741885904096,0.26031,80673.0,80663.0,0.260342]
[1741885904310,0.0128861,80684.0,80681.0,0.012394]
[1741885904518,0.012391,80701.0,80690.0,0.012393]
[1741885904738,0.11970099,80701.0,80695.0,0.012392]
[1741885904939,0.012392,80693.0,80685.0,0.012393]
[1741885905246,0.012391,80702.0,80692.0,0.012392]
[1741885905453,0.247877,80686.0,80684.0,0.78664]
[1741885905667,0.012393,80689.0,80684.0,0.78664]
[1741885905668,0.260261,80688.0,80684.0,0.78664]
[1741885905872,0.017391,80701.0,80691.0,0.012392]
[1741885906050,0.012391,80699.0,80689.0,0.012393]
[1741885906256,0.012391,80699.0,80684.0,0.78664]
[1741885906257,0.012392,80695.0,80684.0,0.78664]
[1741885906416,0.260264,80687.0,80684.0,0.78664]
[1741885906748,0.247877,80685.0,80684.0,0.78664]
[1741885906950,0.26027,80685.0,80684.0,0.78664]
[1741885907105,0.26027,80685.0,80659.0,0.16922085]
[1741885907106,0.012395,80676.0,80665.0,0.012396]
[1741885907339,0.012395,80672.0,80666.0,0.78672]
[1741885907533,0.012395,80672.0,80667.0,0.78672]
[1741885907534,0.247926,80669.0,80667.0,0.78672]
[1741885907738,0.247956,80660.0,80652.0,0.012398]
[1741885907897,0.012397,80661.0,80653.0,0.78672]
[1741885908098,0.012397,80661.0,80646.0,0.012399]
[1741885908099,0.247966,80657.0,80654.0,0.78672]
[1741885908535,0.00886834,80656.0,80654.0,0.78672]
[1741885909396,0.247969,80655.0,80654.0,0.78672]
[1741885909529,0.25683734,80655.0,80654.0,0.78672]
[1741885910132,0.00886834,80655.0,80654.0,0.78672]
[1741885910354,0.00886834,80655.0,80654.0,1.04709]
[1741885910557,0.01941972,80672.0,80671.0,0.012396]
[1741885910759,0.10849876,80685.0,80684.0,0.260274]
[1741885911262,0.1173671,80685.0,80683.0,0.78688]
[1741885911399,0.260312,80672.0,80661.0,0.012397]
[1741885911604,0.00867427,80671.0,80661.0,0.012397]
[1741885911956,0.247951,80661.0,80660.0,0.78688]
[1741885912161,0.00867427,80671.0,80666.0,0.012396]
[1741885912293,0.247858,80692.0,80674.0,0.012395]
[1741885912499,0.012393,80688.0,80680.0,0.012394]
[1741885912735,0.012393,80688.0,80674.0,0.012395]
[1741885912736,0.00722327,80684.0,80675.0,0.012395]
[1741885912901,0.00722327,80684.0,80676.0,0.012395]
[1741885913109,0.012395,80677.0,80660.0,1.034831]
[1741885913461,0.012396,80665.0,80660.0,0.78688]
[1741885913693,0.012396,80667.0,80661.0,0.012397]
[1741885913891,0.00723895,80664.0,80661.0,0.012397]
[1741885914094,0.012395,80674.0,80667.0,0.012396]
[1741885914295,0.012396,80667.0,80661.0,0.012397]
[1741885914905,0.012398,80658.0,80652.0,0.78696]
[1741885915122,0.012398,80658.0,80649.0,0.012399]
[1741885915123,0.012398,80657.0,80649.0,0.012399]
[1741885915681,0.012398,80658.0,80651.0,0.012399]
[1741885915682,0.247966,80656.0,80651.0,0.012399]
[1741885915889,0.247954,80660.0,80654.0,0.012398]
[1741885916159,0.01941785,80685.0,80667.0,0.012396]
[1741885916365,0.247883,80683.0,80674.0,0.012395]
[1741885916517,0.260299,80677.0,80668.0,0.260325]
[1741885916725,0.247877,80685.0,80674.0,0.012395]
[1741885916923,0.247874,80687.0,80680.0,0.24789]
[1741885917128,0.012394,80681.0,80673.0,0.012395]
[1741885917294,0.2479,80678.0,80671.0,0.012396]
[1741885917652,0.247926,80670.0,80662.0,0.012397]
[1741885917849,0.012397,80663.0,80655.0,0.260366]
[1741885918057,0.012396,80669.0,80657.0,0.26036]
[1741885918401,0.012396,80669.0,80653.0,0.012398]
[1741885918402,0.260364,80657.0,80649.0,0.7871689]
[1741885918833,0.247958,80659.0,80651.0,0.012399]
[1741885919006,0.012395,80672.0,80662.0,0.247945]
[1741885919205,0.012395,80672.0,80663.0,0.012397]
[1741885919206,0.012396,80670.0,80663.0,0.012397]
[1741885919411,0.012396,80665.0,80652.0,0.012398]
[1741885919613,0.247976,80653.0,80648.0,0.260389]
[1741885920193,0.247983,80651.0,80644.0,0.0124]
[1741885920392,0.247983,80651.0,80644.0,0.260402]
[1741885920635,0.247966,80657.0,80651.0,0.012399]
[1741885920870,0.312395,80674.0,80643.0,0.1556]
[1741885921077,0.12125075,80673.0,80651.0,0.003]
[1741885921293,0.247948,80662.0,80654.0,0.260369]
[1741885921443,0.012397,80661.0,80649.0,0.0001689]
[1741885921664,0.00912669,80689.0,80658.0,0.012398]
[1741885922000,0.0053378,80694.0,80649.0,0.0041689]
[1741885922001,0.012394,80678.0,80669.0,0.012396]
[1741885922245,0.247878,80685.0,80676.0,0.012395]
[1741885922414,0.247892,80681.0,80673.0,0.008395]
[1741885922632,0.247909,80675.0,80669.0,0.260321]
[1741885922863,0.012394,80680.0,80671.0,0.012396]
[1741885922864,0.247898,80679.0,80671.0,0.012396]
[1741885923403,0.247898,80679.0,80667.0,0.012396]
[1741885923404,0.247905,80676.0,80667.0,0.012396]
[1741885923608,0.001,80673.0,80672.0,0.012395]
[1741885924157,0.247904,80677.0,80670.0,0.260319]
[1741885924328,0.247895,80680.0,80673.0,0.012395]
[1741885924530,0.247895,80680.0,80674.0,0.260306]
[1741885924734,0.012392,80693.0,80681.0,0.012394]
[1741885924950,0.247888,80682.0,80675.0,0.247906]
[1741885925149,0.012394,80679.0,80665.0,0.260335]
[1741885925351,0.260307,80674.0,80665.0,0.260335]
[1741885925551,0.247912,80674.0,80673.0,0.001]
[1741885925750,0.247912,80674.0,80668.0,0.260325]
[1741885926172,0.01941535,80676.0,80672.0,0.247916]
[1741885926443,0.26732135,80676.0,80670.0,0.247922]
[1741885926627,0.247908,80675.0,80668.0,0.260323]
[1741885926830,0.01941535,80676.0,80668.0,0.260323]
[1741885926831,0.01941535,80676.0,80672.0,0.260311]
[1741885927175,0.01941535,80676.0,80675.0,0.012395]
[1741885927383,0.01941535,80676.0,80675.0,0.260303]
[1741885928215,0.01941535,80676.0,80675.0,0.247908]
[1741885928347,0.012395,80673.0,80672.0,1.5]
[1741885928559,0.3003378,80694.0,80651.0,0.78708]
[1741885928560,0.012397,80659.0,80651.0,0.78708]
[1741885928757,0.247967,80656.0,80651.0,0.799479]
[1741885928937,0.24796,80658.0,80651.0,0.78708]
[1741885929142,0.24796,80658.0,80652.0,0.012398]
[1741885929342,0.247929,80668.0,80660.0,0.012397]
[1741885929565,0.012395,80677.0,80651.0,0.78708]
[1741885929566,0.3,80681.0,80658.0,0.012398]
[1741885929765,0.247917,80672.0,80665.0,0.012396]
[1741885929969,0.247923,80671.0,80662.0,0.012397]
[1741885930192,0.247928,80669.0,80664.0,0.247942]
[1741885930406,0.247942,80664.0,80655.0,0.012398]
[1741885930597,0.012397,80660.0,80650.0,0.247982]
[1741885930797,0.24797,80655.0,80649.0,0.2605549]
[1741885930996,0.247966,80656.0,80649.0,0.2481559]
[1741885931238,0.247966,80657.0,80651.0,0.78908]
[1741885931515,0.247975,80653.0,80651.0,0.78708]
[1741885931874,0.012398,80652.0,80651.0,0.78708]
[1741885932194,0.24797,80655.0,80651.0,0.78708]
[1741885932397,0.247948,80662.0,80656.0,0.260362]
[1741885932597,0.247964,80657.0,80651.0,0.799479]
[1741885932799,0.260358,80658.0,80651.0,0.78708]
[1741885933000,0.247982,80651.0,80649.0,0.0001689]
[1741885933204,0.012399,80650.0,80649.0,0.0001689]
[1741885933468,0.247982,80651.0,80649.0,0.0001689]
[1741885933835,0.24796,80658.0,80650.0,0.247985]
[1741885934263,0.02476418,80680.0,80650.0,0.247985]
[1741885934264,0.0253664,80667.0,80651.0,0.012399]
[1741885934497,0.247973,80654.0,80649.0,0.0001689]
[1741885934630,0.247984,80651.0,80649.0,0.0001689]
[1741885934833,0.012399,80650.0,80649.0,0.0001689]
[1741885935282,0.01394899,80650.0,80649.0,0.0001689]
[1741885935904,0.01394899,80650.0,80649.0,0.0031689]
[1741885936148,0.43364998,80650.0,80649.0,0.0031689]
[1741885936340,0.43364998,80650.0,80608.0,0.4172]
[1741885936341,0.012402,80630.0,80622.0,0.248071]
[1741885936480,0.012402,80630.0,80616.0,0.012404]
[1741885936481,0.248,80645.0,80636.0,0.260429]
[1741885936685,0.248,80645.0,80615.0,0.78716]
[1741885936686,0.001,80650.0,80641.0,0.26041]
[1741885937059,0.001,80650.0,80647.0,0.260393]
[1741885937451,0.247972,80655.0,80647.0,0.012399]
[1741885937452,0.247975,80654.0,80647.0,0.012399]
[1741885937739,0.001,80650.0,80647.0,0.012399]
[1741885937948,0.247988,80649.0,80643.0,0.260406]
[1741885938174,0.247994,80648.0,80642.0,0.260409]
[1741885938307,0.260376,80652.0,80640.0,0.260415]
[1741885938511,0.247996,80647.0,80640.0,0.260415]
[1741885938733,0.247985,80650.0,80637.0,1.760423]
[1741885938734,0.247988,80649.0,80637.0,1.760423]
[1741885938908,0.248006,80644.0,80638.0,0.012401]
[1741885939115,0.24801,80642.0,80637.0,1.5]
[1741885939318,0.248011,80642.0,80637.0,1.5]
[1741885939525,0.248011,80642.0,80637.0,1.512401]
[1741885939725,0.248011,80642.0,80637.0,0.012401]
[1741885940146,0.248024,80638.0,80636.0,1.5]
[1741885940469,0.247975,80654.0,80644.0,0.0124]
[1741885940707,0.248979,80652.0,80644.0,0.0124]
[1741885940851,0.001,80652.0,80643.0,0.260403]
[1741885941032,0.24799,80649.0,80642.0,0.0124]
[1741885941228,0.247993,80648.0,80642.0,0.260406]
[1741885941461,0.247996,80647.0,80642.0,0.260406]
[1741885941663,0.247996,80647.0,80641.0,0.0124]
[1741885942025,0.012399,80650.0,80641.0,0.0124]
[1741885942026,0.000338,80650.0,80648.0,0.247988]
[1741885942228,0.000338,80650.0,80649.0,0.012399]
[1741885943052,0.000338,80650.0,80640.0,0.0124]
[1741885943257,0.000338,80650.0,80644.0,0.11970099]
[1741885943551,0.000338,80650.0,80637.0,0.260425]
[1741885943753,0.012399,80646.0,80635.0,0.15536]
[1741885944055,0.248015,80641.0,80636.0,0.11970099]
[1741885944294,0.012399,80647.0,80636.0,0.11970099]
[1741885944295,0.24801,80642.0,80636.0,0.38012699]
[1741885944556,0.24801,80642.0,80636.0,0.248025]